bitfinex/quotes_ETHUSD_20251217
["timestamp","ask_amount","ask_price","bid_price","bid_amount"]
[1765998817008,0.03567733,2802.0,2801.0,0.586]
[1765998817205,0.03567733,2802.2,2801.1,5.7551]
[1765998817511,0.001,2802.5,2801.5,7.8998]
[1765998817718,0.001,2802.5,2801.5,8.4858]
[1765998817903,0.001,2802.5,2801.5,7.8998]
[1765998817904,0.03567733,2802.4,2801.5,7.8998]
[1765998818314,0.03567733,2802.4,2801.3,0.586]
[1765998818520,0.03567733,2802.4,2801.4,5.7551]
[1765998818724,0.03567733,2802.4,2801.7,7.8998]
[1765998819041,0.001,2803.0,2802.1,5.7551]
[1765998819252,0.001,2803.0,2802.7,5.7551]
[1765998819410,0.001,2803.6,2802.8,7.9354786]
[1765998819608,0.005,2803.4,2801.6,7.8998]
[1765998819934,0.001,2802.4,2801.7,0.586]
[1765998820108,0.001,2803.6,2801.7,0.586]
[1765998820109,0.001,2803.6,2802.0,5.7551]
[1765998820309,0.001,2803.6,2802.5,2.1447]
[1765998820508,0.001,2803.6,2802.6,0.586]
[1765998820943,0.03567733,2803.3,2802.8,2.1708]
[1765998821116,0.03567733,2803.3,2802.3,0.03568497]
[1765998821117,0.03567733,2803.5,2802.5,5.5137]
[1765998821322,0.03567733,2803.5,2802.6,0.586]
[1765998821716,0.03567733,2803.5,2802.7,0.586]
[1765998821944,0.03567733,2802.9,2801.1,3.56994415]
[1765998822146,0.03567733,2802.9,2801.6,2.1708]
[1765998822347,0.03567733,2802.9,2801.7,8.2705]
[1765998822664,0.03567733,2802.9,2801.8,7.6845]
[1765998823050,1.74669309,2803.7,2801.8,7.6845]
[1765998823051,0.03567733,2803.0,2802.0,5.5137]
[1765998823367,0.03567733,2803.2,2802.4,5.5137]
[1765998823670,0.03567733,2803.4,2802.5,0.586]
[1765998823985,0.03567733,2803.4,2802.7,2.1708]
[1765998824284,0.03567733,2803.4,2802.9,2.1708]
[1765998824436,0.03567733,2803.4,2803.0,0.586]
[1765998824642,0.03567733,2803.4,2803.1,7.6845]
[1765998825256,0.03567733,2803.4,2802.2,5.5137]
[1765998825570,0.03567733,2803.4,2802.8,2.1708]
[1765998825775,0.03567733,2803.4,2802.9,0.586]
[1765998826260,0.03567733,2803.4,2802.9,8.2705]
[1765998827057,0.03567733,2803.6,2802.9,8.2705]
[1765998827261,0.03567733,2803.6,2802.3,0.90824179]
[1765998827262,0.03567733,2803.2,2802.3,0.90824179]
[1765998827449,0.03567733,2803.0,2802.2,7.6845]
[1765998827657,0.03567733,2803.0,2802.3,0.586]
[1765998827961,0.03567733,2802.8,2802.3,5.5137]
[1765998828268,0.03567733,2802.8,2802.4,2.1708]
[1765998828470,0.03567733,2802.6,2801.9,2.1708]
[1765998828647,0.03567733,2802.6,2801.9,3.52525]
[1765998828848,0.03567733,2802.6,2801.7,5.5137]
[1765998829048,0.03567733,2802.6,2801.8,0.586]
[1765998829277,0.03567733,2802.6,2801.7,5.5137]
[1765998829513,0.03567733,2802.4,2801.9,7.6845]
[1765998829824,0.03567733,2802.4,2801.8,8.2705]
[1765998830124,0.03567733,2802.4,2802.0,7.6845]
[1765998830643,0.03567733,2802.2,2801.9,0.586]
[1765998831189,0.03567733,2802.2,2801.7,0.585]
[1765998831373,0.03567733,2802.2,2801.5,7.6865]
[1765998831578,0.03567733,2801.9,2801.5,0.002]
[1765998831887,0.03567733,2801.9,2801.2,0.585]
[1765998832106,0.03567733,2801.9,2800.7,5.5137]
[1765998832291,0.50457733,2801.9,2800.7,6.86715]
[1765998832491,0.50457733,2801.9,2800.4,0.002]
[1765998832492,0.4689,2801.7,2800.4,0.002]
[1765998832693,0.03567733,2801.2,2800.5,5.5137]
[1765998833009,0.03567733,2801.2,2800.5,7.6845]
[1765998833315,0.03567733,2801.2,2800.6,7.6845]
[1765998833496,0.03567733,2801.2,2800.4,0.002]
[1765998833699,0.03567733,2801.2,2800.8,2.1708]
[1765998834002,0.03567733,2801.4,2800.8,0.21708]
[1765998834204,0.03567733,2801.2,2800.5,0.585]
[1765998834517,0.03567733,2801.2,2800.4,0.002]
[1765998834902,0.03567733,2801.2,2799.6,7.6845]
[1765998834903,0.3955,2801.0,2799.6,7.6845]
[1765998835102,0.4669,2800.8,2799.6,8.45295]
[1765998835277,0.4669,2800.8,2800.5,0.002]
[1765998835609,0.4669,2800.8,2799.6,8.45295]
[1765998836211,0.03567733,2800.5,2799.6,8.45295]
[1765998836385,0.03567733,2800.5,2799.7,0.845295]
[1765998836940,0.03567733,2801.2,2799.9,5.5137]
[1765998837215,0.03567733,2800.9,2800.1,7.6845]
[1765998837385,0.03567733,2800.9,2799.8,0.585]
[1765998837811,0.03567733,2800.9,2800.0,7.6845]
[1765998837998,0.03567733,2800.9,2800.1,8.45295]
[1765998838810,0.03567733,2800.7,2800.1,0.76845]
[1765998839109,0.03567733,2800.7,2800.0,0.585]
[1765998839110,0.50057733,2801.4,2800.0,0.585]
[1765998839319,0.03567733,2801.4,2800.2,2.1708]
[1765998839477,0.03567733,2801.4,2800.3,5.5137]
[1765998839682,0.03567733,2801.4,2800.3,6.28215]
[1765998839887,0.03567733,2801.4,2800.4,8.2695]
[1765998840512,0.03567733,2802.0,2800.4,0.585]
[1765998840712,0.03567733,2802.0,2800.7,5.5137]
[1765998840916,0.03567733,2802.0,2800.8,8.2695]
[1765998841119,0.03567733,2802.0,2800.9,0.82695]
[1765998841426,0.03567733,2802.0,2801.1,7.6845]
[1765998841634,0.03567733,2802.2,2801.2,0.585]
[1765998841933,0.03567733,2802.2,2801.5,5.5137]
[1765998842108,0.03567733,2802.2,2801.4,2.1708]
[1765998842434,0.03567733,2802.4,2801.5,7.72019516]
[1765998842585,0.03567733,2802.4,2801.4,0.27558]
[1765998842791,0.03567733,2802.4,2801.2,5.5137]
[1765998843096,0.0714,2802.0,2800.8,0.585]
[1765998843291,0.03567733,2802.2,2800.8,0.585]
[1765998843523,0.03567733,2802.2,2801.2,2.1708]
[1765998843723,0.03567733,2802.2,2801.2,2.93925]
[1765998843898,0.03567733,2802.2,2801.2,0.76845]
[1765998844105,0.50057733,2802.2,2801.1,5.5137]
[1765998845627,0.03667733,2802.4,2801.2,2.20649898]
[1765998845792,0.03667733,2802.4,2801.4,7.6845]
[1765998845995,0.03667733,2802.4,2801.0,0.585]
[1765998846207,0.03667733,2802.4,2801.1,7.6845]
[1765998846411,0.4649,2802.2,2801.2,0.82695]
[1765998846738,0.4649,2802.2,2801.1,0.585]
[1765998847035,0.03567733,2802.1,2801.1,2.1708]
[1765998847183,0.03567733,2802.1,2800.9,0.585]
[1765998847390,0.46438023,2801.9,2801.2,5.5137]
[1765998847591,0.46438023,2801.9,2801.3,8.82087]
[1765998848118,6.39,2802.0,2801.3,1.13637]
[1765998848336,6.39,2802.0,2801.6,7.6845]
[1765998848908,6.39,2802.0,2800.7,0.405504]
[1765998849160,0.4649,2801.8,2800.7,5.5137]
[1765998849508,0.4649,2801.8,2800.5,0.002]
[1765998849509,0.799004,2801.8,2800.5,0.002]
[1765998849708,0.0714,2801.9,2800.6,7.9482]
[1765998849942,0.96847,2801.9,2800.7,2.98102]
[1765998850128,0.42917733,2801.8,2800.6,0.585]
[1765998851135,0.3935,2801.8,2800.6,8.8248]
[1765998851308,0.03567733,2802.3,2801.1,2.367]
[1765998851506,0.03567733,2802.3,2800.7,3.60624128]
[1765998851507,0.03567733,2802.3,2801.3,8.2398]
[1765998851728,0.03567733,2802.3,2801.2,0.585]
[1765998851915,0.03567733,2802.3,2801.3,8.2398]
[1765998852125,0.001,2802.4,2801.5,5.8728]
[1765998852334,0.001,2802.4,2801.6,8.2398]
[1765998852838,0.3915,2802.3,2801.3,0.88248]
[1765998853040,0.3915,2802.2,2801.0,8.8248]
[1765998853339,0.001,2802.4,2801.2,5.8728]
[1765998853538,0.001,2802.4,2801.3,8.2398]
[1765998853936,0.001,2802.4,2801.1,1.46748]
[1765998853937,0.3915,2802.1,2801.1,1.46748]
[1765998854137,0.4629,2802.1,2800.7,0.46438023]
[1765998854335,0.4629,2802.1,2801.0,0.585]
[1765998854647,0.4639,2802.4,2801.2,8.2398]
[1765998855470,0.4639,2802.4,2800.9,0.585]
[1765998855471,0.001,2802.4,2801.4,5.8728]
[1765998855760,0.001,2802.4,2801.6,0.405504]
[1765998855962,0.001,2802.4,2801.8,2.367]
[1765998856163,0.001,2802.4,2801.6,0.405504]
[1765998856164,0.001,2802.4,2802.0,8.2398]
[1765998856337,0.001,2802.4,2801.6,0.405504]
[1765998856543,0.03667733,2803.4,2802.2,2.367]
[1765998856856,0.03667733,2803.4,2802.0,0.585]
[1765998857160,0.03667733,2803.4,2802.1,8.2398]
[1765998857361,0.001,2803.4,2802.2,8.2398]
[1765998857531,0.001,2803.4,2802.2,5.8728]
[1765998857856,0.001,2803.4,2802.4,8.2398]
[1765998858352,0.001,2803.4,2802.5,8.8248]
[1765998858558,0.001,2803.4,2802.6,5.8728]
[1765998858723,0.001,2803.4,2802.7,8.2398]
[1765998858921,0.001,2803.4,2802.8,8.2398]
[1765998859168,0.001,2803.4,2802.4,0.585]
[1765998859729,0.3945,2803.4,2802.4,0.585]
[1765998859926,0.4649,2803.1,2801.5,2.367]
[1765998860151,0.001,2803.4,2801.8,3.56906837]
[1765998860321,0.001,2803.4,2802.1,2.367]
[1765998860669,0.001,2803.4,2802.3,8.2398]
[1765998860967,0.001,2803.4,2801.9,0.35690684]
[1765998860968,0.4659,2803.1,2801.9,9.18170684]
[1765998862574,0.03667733,2803.4,2802.4,2.367]
[1765998862771,0.03667733,2803.4,2802.4,8.2398]
[1765998863063,0.03667733,2803.4,2801.9,8.59670684]
[1765998863275,0.03667733,2803.4,2801.9,0.94190684]
[1765998863276,0.4659,2803.2,2801.9,0.94190684]
[1765998863452,0.4659,2803.2,2802.0,8.2398]
[1765998863770,0.4659,2803.2,2802.0,9.15797068]
[1765998863969,0.4659,2803.2,2802.0,8.2398]
[1765998864150,0.3945,2803.2,2801.9,0.94190684]
[1765998864354,0.46438023,2803.3,2802.1,8.2398]
[1765998865127,0.46438023,2803.3,2802.0,8.2398]
[1765998865364,8.85829793,2803.4,2802.2,5.8728]
[1765998865365,0.46438023,2803.1,2802.2,5.8728]
[1765998865532,0.46438023,2803.1,2802.3,0.585]
[1765998867063,0.46438023,2802.8,2801.5,8.2398]
[1765998867475,0.46438023,2802.8,2801.3,0.585]
[1765998867643,0.46438023,2802.8,2801.1,8.2398]
[1765998867841,0.405504,2802.8,2801.2,1.40898]
[1765998868159,0.405504,2802.8,2801.4,8.2398]
[1765998868957,0.03567733,2802.9,2801.4,2.367]
[1765998869138,0.03567733,2802.9,2801.2,0.585]
[1765998869139,0.03567733,2802.9,2801.6,8.2398]
[1765998869550,0.001,2803.2,2801.9,8.2398]
[1765998869851,0.001,2803.2,2802.6,5.8728]
[1765998870061,0.001,2803.2,2802.8,5.8728]
[1765998870261,0.001,2803.4,2802.6,5.8728]
[1765998870462,0.001,2803.4,2802.7,8.2398]
[1765998871176,0.001,2803.4,2802.5,0.585]
[1765998871465,0.03667733,2804.4,2803.5,2.367]
[1765998871466,0.001,2804.4,2803.5,2.367]
[1765998871669,0.001,2804.4,2803.5,3.19098]
[1765998872038,0.001,2804.4,2803.7,2.367]
[1765998872238,0.001,2804.4,2803.4,5.8728]
[1765998872440,0.001,2804.4,2803.8,8.2398]
[1765998872839,0.001,2804.4,2803.7,8.2398]
[1765998873361,0.001,2804.4,2803.6,0.585]
[1765998873563,0.001,2804.4,2803.7,8.2398]
[1765998873765,0.001,2804.4,2803.8,8.2398]
[1765998874262,0.001,2804.4,2803.8,8.8248]
[1765998874761,0.001,2804.4,2803.8,8.2398]
[1765998876161,0.001,2804.4,2803.2,0.584]
[1765998876335,0.001,2804.4,2803.3,8.2398]
[1765998876538,0.001,2804.4,2803.2,0.584]
[1765998876539,0.001,2804.6,2803.4,1.75226423]
[1765998876739,0.009,2805.8,2804.5,8.2398]
[1765998876952,0.009,2805.8,2804.6,0.584]
[1765998877151,0.009,2805.8,2804.6,8.8238]
[1765998877352,0.009,2805.8,2804.7,8.2398]
[1765998877552,0.009,2806.2,2804.6,0.584]
[1765998877757,7.8316206,2806.4,2804.8,8.2398]
[1765998877954,7.8316206,2806.4,2804.7,5.8728]
[1765998878157,7.8316206,2806.4,2804.6,0.584]
[1765998878158,0.46438023,2806.3,2805.0,8.2398]
[1765998878358,7.8316206,2806.4,2804.6,0.584]
[1765998878560,7.8316206,2806.4,2804.9,5.8728]
[1765998878770,8.1380866,2807.7,2805.7,5.8728]
[1765998878968,0.03567733,2808.8,2806.0,6.33718023]
[1765998878969,0.18642171,2808.3,2806.0,6.33718023]
[1765998879190,10.59377278,2808.8,2806.5,0.46438023]
[1765998879496,0.00690548,2809.6,2806.9,8.2398]
[1765998879497,9.00795862,2809.2,2806.9,8.2398]
[1765998879775,0.00690548,2810.1,2807.8,2.367]
[1765998880076,9.00790663,2809.8,2808.0,8.2398]
[1765998880373,0.18628603,2809.8,2807.9,2.367]
[1765998880581,0.03567733,2809.7,2808.0,8.2398]
[1765998880739,0.03567733,2809.7,2807.9,0.584]
[1765998880740,8.8216206,2809.5,2807.9,0.584]
[1765998881074,0.46438023,2808.7,2807.1,8.1522]
[1765998881278,0.46438023,2808.7,2806.2,0.46438023]
[1765998881279,0.46438023,2808.2,2806.2,0.46438023]
[1765998881582,0.89707,2808.6,2806.5,0.46438023]
[1765998881583,0.86988423,2808.4,2806.5,0.46438023]
[1765998882065,2.66106612,2808.4,2806.5,0.46438023]
[1765998882267,0.405504,2808.2,2806.6,8.1522]
[1765998882477,2.24606473,2808.3,2805.3,5.9296]
[1765998882785,0.405504,2807.8,2806.4,8.1522]
[1765998882951,0.405504,2807.8,2805.2,7.91947133]
[1765998882952,2.19284339,2807.8,2806.0,8.1522]
[1765998883275,0.46438023,2807.8,2806.0,8.1522]
[1765998883571,0.405504,2807.7,2806.1,2.2226]
[1765998883753,0.405504,2807.7,2806.1,8.1522]
[1765998884143,0.405504,2807.7,2805.8,0.584]
[1765998884344,1.74796254,2808.0,2806.2,2.2226]
[1765998884675,1.74796254,2808.0,2805.6,0.405504]
[1765998884676,0.405504,2808.0,2806.5,2.2226]
[1765998884979,1.74289057,2807.5,2805.7,5.9296]
[1765998885163,0.405504,2807.4,2805.8,0.46438023]
[1765998885340,2.144292,2807.4,2805.8,1.04838023]
[1765998885541,1.78538109,2807.3,2805.2,0.03567733]
[1765998885756,0.405504,2807.0,2805.3,8.1522]
[1765998886170,2.19367465,2807.0,2805.3,8.1522]
[1765998886587,0.03567733,2807.1,2805.4,2.2226]
[1765998886886,0.03567733,2807.1,2805.7,8.1522]
[1765998887065,0.03567733,2807.1,2805.7,8.7362]
[1765998887066,0.2213509,2807.1,2805.7,8.7362]
[1765998887269,0.03567733,2807.1,2805.7,8.7362]
[1765998887799,0.405504,2806.5,2804.9,8.1522]
[1765998888101,0.86988423,2806.5,2804.6,8.1522]
[1765998888313,0.86988423,2806.5,2805.0,0.46438023]
[1765998888467,0.87552482,2806.4,2804.9,8.1522]
[1765998888790,0.405504,2806.3,2804.9,8.1522]
[1765998888992,0.87552482,2806.4,2804.8,0.584]
[1765998889160,0.46438023,2806.8,2804.8,0.584]
[1765998889161,0.405504,2806.5,2804.8,2.2226]
[1765998889360,0.405504,2806.5,2804.9,8.7362]
[1765998889589,0.405504,2806.5,2805.0,0.46438023]
[1765998889770,0.405504,2806.5,2805.1,0.92005802]
[1765998889956,0.405504,2806.6,2805.1,0.92005802]
[1765998890161,2.15226214,2806.6,2805.1,0.92005802]
[1765998890361,2.16102488,2806.1,2803.6,0.03567733]
[1765998890559,1.71296431,2805.8,2804.2,2.2226]
[1765998890799,1.71296431,2805.8,2804.1,5.9296]
[1765998890800,0.405504,2805.5,2804.1,5.9296]
[1765998891089,0.405504,2805.6,2803.9,0.584]
[1765998891292,0.405504,2805.6,2803.9,1.04838023]
[1765998891464,2.17112346,2805.6,2803.9,1.04838023]
[1765998891668,0.405504,2805.6,2803.9,8.7362]
[1765998892096,0.03567733,2805.5,2803.9,0.584]
[1765998892396,0.03567733,2805.5,2803.9,8.7362]
[1765998892695,0.03567733,2805.5,2803.8,0.002]
[1765998892994,0.405504,2805.4,2803.8,0.002]
[1765998893491,0.405504,2805.4,2804.0,8.1522]
[1765998894769,0.03567733,2805.3,2803.8,0.002]
[1765998894975,0.405504,2805.0,2803.8,0.002]
[1765998895302,0.405504,2804.8,2803.8,0.002]
[1765998895490,0.03567733,2804.9,2803.8,8.1542]
[1765998895694,0.03567733,2804.9,2803.9,8.96762]
[1765998895890,0.03567733,2804.9,2803.8,0.002]
[1765998895891,0.405504,2804.8,2803.8,0.002]
[1765998896301,0.03567733,2804.9,2803.8,8.7382]
[1765998896697,0.03567733,2804.9,2803.8,8.1542]
[1765998896899,0.03567733,2804.9,2803.8,8.7382]
[1765998897082,0.03567733,2804.9,2803.9,0.87382]
[1765998897909,0.03567733,2804.9,2803.8,0.586]
[1765998898403,0.03567733,2804.9,2803.8,0.002]
[1765998898404,0.405504,2804.8,2803.8,0.002]
[1765998898612,0.405504,2804.6,2803.8,0.002]
[1765998899405,0.405504,2804.6,2803.9,0.002]
[1765998901115,0.405504,2804.4,2803.9,0.002]
[1765998901275,0.405504,2804.4,2802.6,5.9316]
[1765998901276,1.72951912,2804.1,2802.6,0.002]
[1765998901475,1.72615101,2803.6,2802.6,0.002]
[1765998901700,0.86988423,2803.7,2802.6,0.002]
[1765998901910,2.66160123,2804.7,2802.9,2.2226]
[1765998902078,0.405504,2804.5,2803.0,8.96742]
[1765998902276,7.88536393,2804.9,2803.2,5.9296]
[1765998902508,7.88536393,2805.4,2803.7,5.9296]
[1765998902713,7.92104126,2805.4,2803.9,8.1522]
[1765998903008,7.88536393,2805.4,2804.0,0.81522]
[1765998903308,1.7998397,2805.7,2803.4,8.1522]
[1765998903512,1.7998397,2805.7,2803.0,0.81522]
[1765998903513,0.405504,2804.8,2803.0,8.96742]
[1765998903687,0.405504,2804.8,2803.2,8.1522]
[1765998903688,0.44118133,2804.6,2803.2,8.1522]
[1765998904095,0.44118133,2804.6,2803.3,8.1522]
[1765998904410,0.03567733,2804.4,2802.7,8.1522]
[1765998904595,0.86988423,2804.3,2802.6,0.002]
[1765998904779,0.46438023,2804.3,2802.9,5.9296]
[1765998904979,0.405504,2804.2,2802.9,8.1522]
[1765998905406,0.03567733,2804.4,2803.1,8.1522]
[1765998905608,0.405504,2804.3,2803.1,8.1522]
[1765998905807,0.405504,2804.3,2803.2,9.02582]
[1765998905985,0.405504,2804.3,2803.2,8.1522]
[1765998906593,0.405504,2804.3,2803.0,0.584]
[1765998906798,0.405504,2804.3,2803.0,8.7362]
[1765998907090,0.46438023,2804.2,2803.1,0.03567478]
[1765998907287,0.405504,2804.1,2802.7,8.7362]
[1765998907625,0.405504,2804.1,2802.8,8.1522]
[1765998907785,0.86988423,2803.8,2802.6,0.002]
[1765998907984,0.405504,2803.8,2802.6,0.03768115]
[1765998908213,0.86988423,2803.4,2802.6,0.002]
[1765998908417,0.03567733,2803.6,2802.6,0.002]
[1765998909025,0.405504,2803.5,2802.6,0.002]
[1765998909242,0.03567733,2803.6,2802.6,0.002]
[1765998909388,0.405504,2803.5,2802.6,0.002]
[1765998909591,0.03567733,2803.6,2802.6,0.03768115]
[1765998909920,0.03567733,2803.6,2802.6,0.002]
[1765998911133,0.03567733,2805.0,2802.7,5.93]
[1765998911288,0.03567733,2805.0,2802.8,0.5932]
[1765998911289,7.92104126,2804.8,2802.8,0.5932]
[1765998911495,1.78795789,2804.0,2802.6,0.002]
[1765998911715,0.405504,2803.9,2802.6,0.002]
[1765998912541,1.77620716,2804.4,2802.6,0.002]
[1765998912542,1.74786519,2804.8,2802.8,5.93]
[1765998912697,0.03567733,2804.7,2803.1,2.2209]
[1765998912898,0.03567733,2804.7,2803.4,2.2209]
[1765998913129,0.03567733,2804.7,2803.5,8.37299]
[1765998915425,0.405504,2804.6,2803.5,8.37299]
[1765998915628,0.03567733,2804.7,2803.5,0.22209]
[1765998915795,0.03567733,2804.7,2803.2,0.584]
[1765998915998,0.03567733,2804.7,2803.4,8.1509]
[1765998916197,0.03567733,2804.7,2803.7,5.93]
[1765998916395,0.03567733,2804.9,2803.9,8.1509]
[1765998916832,0.001,2804.7,2804.0,0.87349]
[1765998917608,0.001,2805.9,2804.3,8.1509]
[1765998917609,0.001,2805.7,2804.3,8.1509]
[1765998917802,0.001,2805.5,2804.3,8.1509]
[1765998918539,0.03567733,2805.8,2804.5,8.1509]
[1765998918740,0.03567733,2805.8,2804.4,0.61965825]
[1765998918741,0.001,2805.3,2803.1,0.46438023]
[1765998918951,0.03567733,2805.8,2802.5,0.002]
[1765998918952,0.46538023,2804.8,2802.9,0.86988423]
[1765998919232,0.83683082,2804.7,2803.4,0.46438023]
[1765998919416,0.83783082,2804.7,2803.5,0.584]
[1765998919733,0.001,2804.6,2803.3,8.1509]
[1765998919903,0.001,2804.6,2803.1,0.584]
[1765998920228,0.001,2804.6,2803.1,8.7349]
[1765998920426,0.001,2804.6,2803.1,0.584]
[1765998920595,0.001,2804.6,2803.3,5.93]
[1765998920803,0.405504,2804.9,2803.8,2.2209]
[1765998921032,0.001,2805.5,2804.1,5.93]
[1765998921334,0.03567733,2805.6,2804.1,5.93]
[1765998921498,0.03567733,2805.6,2804.6,2.2209]
[1765998921701,0.001,2805.9,2804.7,0.25774443]
[1765998922032,0.001,2805.9,2804.9,8.1509]
[1765998922412,0.001,2805.6,2803.5,5.93]
[1765998922619,0.001,2805.5,2804.0,0.46438023]
[1765998923107,0.001,2805.5,2804.1,0.583]
[1765998923319,2.67118102,2805.6,2804.1,0.583]
[1765998923320,0.001,2805.2,2804.1,0.583]
[1765998923724,0.001,2805.2,2803.9,8.1509]
[1765998923931,0.001,2805.2,2804.0,0.583]
[1765998924529,0.001,2805.2,2804.0,8.7339]
[1765998924741,0.405504,2805.5,2804.4,2.2209]
[1765998924967,0.002,2805.9,2804.0,4.14932267]
[1765998925264,0.001,2805.9,2805.0,5.93]
[1765998925416,0.001,2805.9,2805.1,0.583]
[1765998925618,0.001,2805.9,2805.3,8.1509]
[1765998925817,0.001,2805.9,2804.7,0.583]
[1765998926030,0.002,2805.8,2804.7,1.50282802]
[1765998926426,0.002,2805.6,2804.2,0.583]
[1765998926949,0.001,2805.9,2804.6,2.2209]
[1765998927153,0.001,2805.9,2804.8,8.1509]
[1765998927368,0.001,2805.9,2803.6,5.93]
[1765998927369,0.46638023,2805.3,2803.6,5.93]
[1765998927519,0.46638023,2805.3,2803.9,2.2209]
[1765998927714,0.46638023,2805.3,2804.0,5.93]
[1765998927948,0.46638023,2805.3,2804.1,8.1509]
[1765998928836,0.405504,2805.8,2804.2,0.03566079]
[1765998929020,0.002,2805.7,2804.2,0.583]
[1765998929219,0.002,2805.7,2804.3,5.93]
[1765998929644,0.002,2805.7,2804.3,8.1509]
[1765998929952,0.002,2805.6,2804.4,0.81509]
[1765998930470,0.86988423,2805.3,2803.3,3.56922016]
[1765998930624,0.002,2805.2,2803.9,0.46438023]
[1765998931160,0.002,2805.2,2803.7,0.583]
[1765998931161,0.002,2805.2,2803.4,8.1509]
[1765998931326,0.002,2805.0,2803.5,0.81529]
[1765998931531,0.002,2805.0,2803.6,8.1509]
[1765998931854,0.002,2805.0,2803.6,8.7339]
[1765998932662,0.002,2805.5,2803.8,2.2209]
[1765998932867,0.002,2805.5,2804.2,8.1509]
[1765998933161,0.002,2805.3,2803.5,8.1509]
[1765998933358,0.002,2804.6,2803.3,0.002]
[1765998935839,0.03567733,2805.0,2803.3,0.002]
[1765998935840,1.74872764,2805.9,2803.7,5.93]
[1765998936045,1.74872764,2805.9,2803.3,0.03767224]
[1765998936046,0.002,2805.1,2803.4,0.46438023]
[1765998936246,0.002,2805.0,2803.5,0.583]
[1765998936447,0.002,2805.0,2803.6,5.93]
[1765998936629,0.002,2805.0,2803.6,8.1509]
[1765998936828,0.46438023,2805.3,2803.5,0.583]
[1765998937042,0.46638023,2805.3,2803.9,8.1509]
[1765998937238,0.405504,2805.2,2803.9,8.1509]
[1765998937425,0.002,2805.1,2803.9,8.1509]
[1765998937630,0.405504,2805.2,2803.9,8.1509]
[1765998937831,0.405504,2805.2,2804.1,8.1509]
[1765998938134,0.002,2805.4,2804.2,9.02429]
[1765998938348,0.46438023,2805.3,2804.2,9.02429]
[1765998938651,6.797504,2805.4,2804.2,9.02429]
[1765998939629,6.39,2805.4,2804.4,8.1509]
[1765998939936,0.001,2805.9,2804.7,2.2209]
[1765998940135,0.001,2805.9,2804.7,8.1509]
[1765998940354,0.001,2805.9,2804.8,0.583]
[1765998940549,0.001,2805.9,2804.6,5.93]
[1765998940550,0.003,2805.9,2804.6,5.93]
[1765998940743,0.003,2805.9,2804.7,1.39809]
[1765998942246,0.003,2805.9,2804.7,8.2966]
[1765998942447,0.001,2805.9,2804.8,5.5266]
[1765998942655,0.001,2805.9,2805.0,7.7136]
[1765998943175,0.001,2805.9,2804.8,0.46438023]
[1765998943348,0.001,2805.9,2805.3,2.187]
[1765998943549,0.001,2805.9,2805.3,7.7136]
[1765998944173,0.001,2805.9,2804.9,0.40297581]
[1765998944174,0.001,2805.9,2804.9,8.11657581]
[1765998944349,0.001,2805.9,2804.9,0.40297581]
[1765998944685,0.001,2805.9,2804.8,1.04738023]
[1765998944975,0.001,2805.9,2804.9,2.187]
[1765998945181,0.001,2805.9,2804.3,5.5266]
[1765998945477,0.001,2805.9,2804.8,0.46438023]
[1765998946038,0.001,2805.9,2804.7,7.7136]
[1765998946437,0.004,2805.9,2804.7,8.2966]
[1765998946640,0.001,2805.9,2804.7,7.7136]
[1765998946839,0.001,2805.9,2804.8,0.583]
[1765998947334,0.001,2805.9,2805.0,2.187]
[1765998947564,0.001,2805.9,2804.3,0.405504]
[1765998947764,0.001,2805.9,2805.1,5.5266]
[1765998947934,0.001,2805.9,2805.6,2.187]
[1765998948139,0.001,2805.9,2805.6,7.7136]
[1765998948867,0.001,2805.9,2805.2,0.55266]
[1765998949071,0.001,2805.9,2805.0,0.583]
[1765998949445,0.001,2805.9,2804.6,0.46438023]
[1765998949641,0.001,2805.9,2804.9,0.46438023]
[1765998950567,0.001,2805.9,2804.9,1.04738023]
[1765998950764,0.001,2805.9,2804.9,0.583]
[1765998950964,0.001,2805.9,2804.9,8.2966]
[1765998951173,0.001,2805.9,2805.0,0.82966]
[1765998951366,0.001,2805.9,2805.0,8.54326]
[1765998951870,0.001,2805.9,2805.5,2.187]
[1765998952171,0.001,2805.9,2805.0,0.82966]
[1765998952172,0.001,2805.9,2805.6,7.7136]
[1765998952353,0.001,2805.9,2805.3,0.583]
[1765998952671,0.406504,2806.4,2805.6,7.7136]
[1765998952967,0.004,2806.3,2804.2,5.5266]
[1765998953169,0.004,2806.3,2804.7,2.187]
[1765998953170,0.46438023,2806.3,2804.7,2.187]
[1765998953337,0.004,2806.1,2804.9,7.7136]
[1765998953873,0.410504,2806.4,2805.1,0.46438023]
[1765998954036,0.410504,2806.4,2805.0,0.82966]
[1765998954037,0.410504,2806.4,2805.3,7.7136]
[1765998954839,0.001,2806.4,2805.2,0.583]
[1765998955068,0.001,2806.4,2805.3,7.7136]
[1765998955269,0.001,2806.4,2805.5,7.7136]
[1765998955447,0.001,2806.4,2805.7,7.7136]
[1765998955649,0.004,2806.3,2805.1,7.7136]
[1765998955848,0.004,2806.2,2804.3,26.509172]
[1765998956053,0.001,2806.4,2805.1,2.187]
[1765998956377,0.001,2806.4,2805.6,5.5266]
[1765998956576,0.001,2806.4,2805.6,0.583]
[1765998956872,0.001,2806.4,2806.0,7.7136]
[1765998957107,0.001,2806.4,2805.6,0.583]
[1765998957394,0.001,2806.4,2805.8,7.7136]